[Event "Titled Tuesday Blitz November 14 Early 2023"]
[White "Yaran, Siar"]
[Black "Josgar05"]
[WhiteFideId "6323006"]
[WhiteElo "2653"]
[BlackElo "2326"]
[Result "1-0"]
[Round "1"]
[TimeControl "180+1"]
[Date "2023.11.14"]
[WhiteClock "0:00:15"]
[BlackClock "0:00:20"]
[Board "162"]

1. d4 {[%clk 0:02:59]}  Nf6 {[%clk 0:02:53]} 2. c4 {[%clk 0:02:58]}  d6 {[%clk 0:02:50]} 3. Nf3 {[%clk 0:02:57]}  Nbd7 {[%clk 0:02:47]} 4. Nc3 {[%clk 0:02:57]}  e5 {[%clk 0:02:47]} 5. g3 {[%clk 0:02:56]}  c6 {[%clk 0:02:46]} 6. Bg2 {[%clk 0:02:56]}  Be7 {[%clk 0:02:47]} 7. O-O {[%clk 0:02:56]}  O-O {[%clk 0:02:47]} 8. Qc2 {[%clk 0:02:54]}  Qc7 {[%clk 0:02:47]} 9. Rd1 {[%clk 0:02:54]}  a5 {[%clk 0:02:47]} 10. b3 {[%clk 0:02:49]}  Re8 {[%clk 0:02:46]} 11. Bb2 {[%clk 0:02:42]}  Bf8 {[%clk 0:02:46]} 12. Rac1 {[%clk 0:02:28]}  exd4 {[%clk 0:02:28]} 13. Nxd4 {[%clk 0:02:27]}  Nc5 {[%clk 0:02:28]} 14. Rd2 {[%clk 0:02:22]}  Bd7 {[%clk 0:02:23]} 15. Rcd1 {[%clk 0:02:22]}  Rad8 {[%clk 0:02:23]} 16. Nf5 {[%clk 0:02:12]}  Bxf5 {[%clk 0:02:22]} 17. Qxf5 {[%clk 0:02:11]}  h6 {[%clk 0:02:06]} 18. g4 {[%clk 0:02:03]}  Qc8 {[%clk 0:01:32]} 19. Qxc8 {[%clk 0:01:52]}  Rxc8 {[%clk 0:01:33]} 20. h3 {[%clk 0:01:36]}  Rcd8 {[%clk 0:01:32]} 21. e3 {[%clk 0:01:25]}  Kh7 {[%clk 0:01:26]} 22. Bf3 {[%clk 0:01:24]}  Re6 {[%clk 0:01:22]} 23. Kg2 {[%clk 0:01:20]}  Nfd7 {[%clk 0:01:20]} 24. h4 {[%clk 0:01:10]}  Be7 {[%clk 0:01:18]} 25. Rh1 {[%clk 0:01:07]}  Kg8 {[%clk 0:01:13]} 26. Ne2 {[%clk 0:00:58]}  Ne5 {[%clk 0:01:10]} 27. Nf4 {[%clk 0:00:49]}  Rf6 {[%clk 0:00:59]} 28. Be2 {[%clk 0:00:48]}  Ne4 {[%clk 0:00:53]} 29. Rd4 {[%clk 0:00:47]}  Nc5 {[%clk 0:00:46]} 30. Kg3 {[%clk 0:00:44]}  Ne6 {[%clk 0:00:42]} 31. Rd2 {[%clk 0:00:39]}  Nc5 {[%clk 0:00:41]} 32. f3 {[%clk 0:00:35]}  Kf8 {[%clk 0:00:39]} 33. g5 {[%clk 0:00:32]}  Re6 {[%clk 0:00:28]} 34. Nxe6+ {[%clk 0:00:31]}  Nxe6 {[%clk 0:00:29]} 35. f4 {[%clk 0:00:31]}  Nd7 {[%clk 0:00:27]} 36. Bf3 {[%clk 0:00:28]}  Nec5 {[%clk 0:00:27]} 37. Rhd1 {[%clk 0:00:25]}  Re8 {[%clk 0:00:27]} 38. e4 {[%clk 0:00:22]}  Kg8 {[%clk 0:00:27]} 39. e5 {[%clk 0:00:22]}  Bf8 {[%clk 0:00:24]} 40. exd6 {[%clk 0:00:17]}  Re3 {[%clk 0:00:23]} 41. Bd4 {[%clk 0:00:17]}  Ne4+ {[%clk 0:00:21]} 42. Kg2 {[%clk 0:00:16]}  Rxf3 {[%clk 0:00:21]} 43. Kxf3 {[%clk 0:00:15]}  Nxd2+ {[%clk 0:00:22]} 44. Rxd2 {[%clk 0:00:16]}  h5 {[%clk 0:00:23]} 45. f5 {[%clk 0:00:15]}  f6 {[%clk 0:00:21]} 46. g6 {[%clk 0:00:15]}  Nb8 {[%clk 0:00:20]} 47. Ba7 {[%clk 0:00:15]}  Nd7 {[%clk 0:00:20]} 48. c5 {[%clk 0:00:15]}  Kh8 {[%clk 0:00:19]} 49. Re2 {[%clk 0:00:15]}  Kg8 {[%clk 0:00:19]} 50. Re8 {[%clk 0:00:15]}  Kh8 {[%clk 0:00:20]} 51. Bb6 {[%clk 0:00:15]}  Kg8 {[%clk 0:00:19]} 52. Rd8 {[%clk 0:00:15]}  Ne5+ {[%clk 0:00:20]} 53. Ke4 {[%clk 0:00:15]}  Ng4 {[%clk 0:00:20]} 54. d7 {[%clk 0:00:15]}  Ne5 {[%clk 0:00:20]} 55. Rxf8+ {[%clk 0:00:14]}  Kxf8 {[%clk 0:00:20]} 56. d8=Q# {[%clk 0:00:15]} 1-0


[Site "https://www.chess.com"]

[Event "Titled Tuesday Blitz November 14 Early 2023"]
[White "Khater, Sherif"]
[Black "Goswami, Vedant"]
[WhiteFideId "2034280"]
[BlackFideId "5003725"]
[WhiteElo "2652"]
[BlackElo "2323"]
[Result "1-0"]
[Round "1"]
[TimeControl "180+1"]
[Date "2023.11.14"]
[WhiteClock "0:00:46"]
[BlackClock "0:00:00"]
[Board "164"]

1. c4 {[%clk 0:02:56]}  Nf6 {[%clk 0:02:58]} 2. Nc3 {[%clk 0:02:54]}  e5 {[%clk 0:02:57]} 3. e3 {[%clk 0:02:52]}  d5 {[%clk 0:02:53]} 4. cxd5 {[%clk 0:02:52]}  Nxd5 {[%clk 0:02:53]} 5. Nf3 {[%clk 0:02:51]}  Nc6 {[%clk 0:02:43]} 6. Be2 {[%clk 0:02:50]}  Be7 {[%clk 0:02:36]} 7. O-O {[%clk 0:02:49]}  O-O {[%clk 0:02:34]} 8. b3 {[%clk 0:02:46]}  Nxc3 {[%clk 0:02:29]} 9. dxc3 {[%clk 0:02:47]}  e4 {[%clk 0:02:27]} 10. Nd4 {[%clk 0:02:47]}  Ne5 {[%clk 0:02:17]} 11. Bb2 {[%clk 0:02:32]}  c5 {[%clk 0:02:14]} 12. Nb5 {[%clk 0:02:19]}  Bf5 {[%clk 0:02:08]} 13. c4 {[%clk 0:02:14]}  Nd3 {[%clk 0:01:59]} 14. Bxd3 {[%clk 0:02:13]}  exd3 {[%clk 0:01:55]} 15. Nc3 {[%clk 0:02:12]}  Bf6 {[%clk 0:01:51]} 16. Qd2 {[%clk 0:02:11]}  Re8 {[%clk 0:01:49]} 17. Nd5 {[%clk 0:02:09]}  Bxb2 {[%clk 0:01:46]} 18. Qxb2 {[%clk 0:02:09]}  Be4 {[%clk 0:01:45]} 19. Nc3 {[%clk 0:01:35]}  Bc6 {[%clk 0:01:39]} 20. Qd2 {[%clk 0:01:31]}  Qg5 {[%clk 0:01:34]} 21. f4 {[%clk 0:01:26]}  Qf5 {[%clk 0:01:34]} 22. Rad1 {[%clk 0:01:21]}  Rad8 {[%clk 0:01:34]} 23. h3 {[%clk 0:01:21]}  h5 {[%clk 0:01:29]} 24. Rfe1 {[%clk 0:01:18]}  Be4 {[%clk 0:01:19]} 25. Kh2 {[%clk 0:01:15]}  a6 {[%clk 0:01:17]} 26. Qf2 {[%clk 0:01:14]}  Re6 {[%clk 0:01:14]} 27. Rd2 {[%clk 0:01:13]}  Rg6 {[%clk 0:01:12]} 28. Nxe4 {[%clk 0:01:10]}  Qxe4 {[%clk 0:01:11]} 29. Qf3 {[%clk 0:01:07]}  Re6 {[%clk 0:00:26]} 30. Qxe4 {[%clk 0:01:06]}  Rxe4 {[%clk 0:00:26]} 31. Kg3 {[%clk 0:01:06]}  b5 {[%clk 0:00:23]} 32. Kf3 {[%clk 0:00:57]}  f5 {[%clk 0:00:22]} 33. Rc1 {[%clk 0:00:51]}  bxc4 {[%clk 0:00:10]} 34. Rxc4 {[%clk 0:00:48]}  Rxc4 {[%clk 0:00:08]} 35. bxc4 {[%clk 0:00:49]}  Kf7 {[%clk 0:00:08]} 36. e4 {[%clk 0:00:49]}  fxe4+ {[%clk 0:00:06]} 37. Kxe4 {[%clk 0:00:50]}  Rd4+ {[%clk 0:00:06]} 38. Ke3 {[%clk 0:00:51]}  Rxc4 {[%clk 0:00:06]} 39. Rxd3 {[%clk 0:00:51]}  Ra4 {[%clk 0:00:06]} 40. a3 {[%clk 0:00:51]}  Ke6 {[%clk 0:00:06]} 41. g4 {[%clk 0:00:51]}  hxg4 {[%clk 0:00:05]} 42. hxg4 {[%clk 0:00:52]}  Rc4 {[%clk 0:00:04]} 43. Rb3 {[%clk 0:00:50]}  Rc1 {[%clk 0:00:01]} 44. Rb6+ {[%clk 0:00:49]}  Kd5 {[%clk 0:00:01]} 45. Rxa6 {[%clk 0:00:50]}  c4 {[%clk 0:00:01]} 46. Ra8 {[%clk 0:00:49]}  Rg1 {[%clk 0:00:01]} 47. g5 {[%clk 0:00:46]}  Rg3+ {[%clk 0:00:00]} 48. Kf2 {[%clk 0:00:46]} 1-0


[Site "https://www.chess.com"]

[Event "Titled Tuesday Blitz November 14 Early 2023"]
[White "Zivic, Dragan"]
[Black "Degenbaev, Aziz"]
[WhiteFideId "904740"]
[BlackFideId "13802640"]
[WhiteElo "2321"]
[BlackElo "2648"]
[Result "0-1"]
[Round "1"]
[TimeControl "180+1"]
[Date "2023.11.14"]
[WhiteClock "0:00:10"]
[BlackClock "0:00:09"]
[Board "165"]

1. c4 {[%clk 0:02:56]}  Nf6 {[%clk 0:02:59]} 2. Nc3 {[%clk 0:02:56]}  g6 {[%clk 0:03:00]} 3. d4 {[%clk 0:02:55]}  Bg7 {[%clk 0:03:00]} 4. e4 {[%clk 0:02:56]}  d6 {[%clk 0:03:01]} 5. h3 {[%clk 0:02:56]}  O-O {[%clk 0:03:00]} 6. Be3 {[%clk 0:02:54]}  e5 {[%clk 0:03:01]} 7. d5 {[%clk 0:02:54]}  a5 {[%clk 0:03:01]} 8. g4 {[%clk 0:02:54]}  Na6 {[%clk 0:03:02]} 9. Nge2 {[%clk 0:02:54]}  Nc5 {[%clk 0:03:02]} 10. Ng3 {[%clk 0:02:54]}  c6 {[%clk 0:03:02]} 11. Be2 {[%clk 0:02:46]}  cxd5 {[%clk 0:03:00]} 12. cxd5 {[%clk 0:02:46]}  Bd7 {[%clk 0:03:01]} 13. h4 {[%clk 0:02:25]}  b5 {[%clk 0:02:55]} 14. f3 {[%clk 0:02:12]}  b4 {[%clk 0:02:54]} 15. Nb1 {[%clk 0:02:11]}  a4 {[%clk 0:02:43]} 16. Nd2 {[%clk 0:02:10]}  Ne8 {[%clk 0:02:17]} 17. Nc4 {[%clk 0:02:03]}  Rc8 {[%clk 0:02:02]} 18. h5 {[%clk 0:02:00]}  Bf6 {[%clk 0:01:55]} 19. Kf2 {[%clk 0:01:54]}  Ng7 {[%clk 0:01:50]} 20. Qd2 {[%clk 0:01:44]}  Bb5 {[%clk 0:01:23]} 21. Rac1 {[%clk 0:01:43]}  Bxc4 {[%clk 0:01:19]} 22. Bxc4 {[%clk 0:01:42]}  b3 {[%clk 0:01:18]} 23. a3 {[%clk 0:01:41]}  Bh4 {[%clk 0:01:03]} 24. Kg2 {[%clk 0:01:36]}  Bxg3 {[%clk 0:00:57]} 25. Kxg3 {[%clk 0:01:36]}  f5 {[%clk 0:00:58]} 26. exf5 {[%clk 0:01:08]}  gxf5 {[%clk 0:00:59]} 27. Bh6 {[%clk 0:01:01]}  fxg4 {[%clk 0:00:55]} 28. Kxg4 {[%clk 0:00:28]}  Qf6 {[%clk 0:00:50]} 29. Rcf1 {[%clk 0:00:20]}  Rf7 {[%clk 0:00:41]} 30. Rhg1 {[%clk 0:00:19]}  Nf5 {[%clk 0:00:38]} 31. Kh3+ {[%clk 0:00:18]}  Kh8 {[%clk 0:00:38]} 32. Bg5 {[%clk 0:00:19]}  Qg7 {[%clk 0:00:34]} 33. Bh4 {[%clk 0:00:19]}  Qf8 {[%clk 0:00:28]} 34. Qg5 {[%clk 0:00:19]}  Nxh4 {[%clk 0:00:27]} 35. Qxh4 {[%clk 0:00:19]}  Rf4 {[%clk 0:00:21]} 36. Qg5 {[%clk 0:00:19]}  Rxc4 {[%clk 0:00:18]} 37. f4 {[%clk 0:00:17]}  Rxf4 {[%clk 0:00:17]} 38. Rxf4 {[%clk 0:00:17]}  exf4 {[%clk 0:00:18]} 39. Qg4 {[%clk 0:00:15]}  Ne4 {[%clk 0:00:17]} 40. Rf1 {[%clk 0:00:14]}  Rc2 {[%clk 0:00:15]} 41. Rxf4 {[%clk 0:00:13]}  Nf2+ {[%clk 0:00:15]} 42. Kg3 {[%clk 0:00:12]}  Nxg4 {[%clk 0:00:08]} 43. Rxf8+ {[%clk 0:00:12]}  Kg7 {[%clk 0:00:09]} 44. Ra8 {[%clk 0:00:10]}  Nf6 {[%clk 0:00:09]} 0-1


[Site "https://www.chess.com"]

[Event "Titled Tuesday Blitz November 14 Early 2023"]
[White "rikchessmx"]
[Black "Makhnev, Denis"]
[BlackFideId "13707647"]
[WhiteElo "2318"]
[BlackElo "2643"]
[Result "0-1"]
[Round "1"]
[TimeControl "180+1"]
[Date "2023.11.14"]
[WhiteClock "0:01:07"]
[BlackClock "0:01:09"]
[Board "167"]

1. e4 {[%clk 0:02:55]}  c6 {[%clk 0:02:59]} 2. d4 {[%clk 0:02:54]}  d5 {[%clk 0:03:00]} 3. Nc3 {[%clk 0:02:55]}  dxe4 {[%clk 0:03:00]} 4. Nxe4 {[%clk 0:02:55]}  Bf5 {[%clk 0:02:59]} 5. Ng3 {[%clk 0:02:54]}  Bg6 {[%clk 0:02:59]} 6. Nf3 {[%clk 0:02:54]}  e6 {[%clk 0:02:59]} 7. h4 {[%clk 0:02:54]}  h6 {[%clk 0:02:59]} 8. h5 {[%clk 0:02:54]}  Bh7 {[%clk 0:02:59]} 9. Bd3 {[%clk 0:02:55]}  Bxd3 {[%clk 0:02:59]} 10. Qxd3 {[%clk 0:02:56]}  Nf6 {[%clk 0:02:59]} 11. Bf4 {[%clk 0:02:56]}  Qa5+ {[%clk 0:02:59]} 12. c3 {[%clk 0:02:56]}  Nbd7 {[%clk 0:02:58]} 13. Bd2 {[%clk 0:02:47]}  Bd6 {[%clk 0:02:53]} 14. Ne4 {[%clk 0:02:45]}  Nxe4 {[%clk 0:02:51]} 15. Qxe4 {[%clk 0:02:46]}  Nf6 {[%clk 0:02:51]} 16. Qe2 {[%clk 0:02:47]}  Nxh5 {[%clk 0:02:30]} 17. c4 {[%clk 0:02:39]}  Bb4 {[%clk 0:02:28]} 18. a3 {[%clk 0:02:26]}  Bxd2+ {[%clk 0:02:27]} 19. Nxd2 {[%clk 0:02:27]}  Nf6 {[%clk 0:02:17]} 20. b4 {[%clk 0:02:22]}  Qf5 {[%clk 0:02:16]} 21. f3 {[%clk 0:02:20]}  O-O {[%clk 0:02:11]} 22. Ne4 {[%clk 0:02:10]}  Rad8 {[%clk 0:02:08]} 23. O-O-O {[%clk 0:02:09]}  a5 {[%clk 0:02:03]} 24. Kb2 {[%clk 0:02:08]}  axb4 {[%clk 0:02:03]} 25. axb4 {[%clk 0:02:09]}  b5 {[%clk 0:01:52]} 26. Nxf6+ {[%clk 0:02:08]}  Qxf6 {[%clk 0:01:51]} 27. Qe5 {[%clk 0:02:08]}  Qxe5 {[%clk 0:01:45]} 28. dxe5 {[%clk 0:02:08]}  bxc4 {[%clk 0:01:46]} 29. Kc3 {[%clk 0:02:00]}  Rd5 {[%clk 0:01:41]} 30. Kxc4 {[%clk 0:02:00]}  Rxe5 {[%clk 0:01:39]} 31. Rd6 {[%clk 0:01:57]}  Rc8 {[%clk 0:01:38]} 32. Rhd1 {[%clk 0:01:55]}  g5 {[%clk 0:01:35]} 33. Rd8+ {[%clk 0:01:55]}  Rxd8 {[%clk 0:01:34]} 34. Rxd8+ {[%clk 0:01:56]}  Kg7 {[%clk 0:01:35]} 35. Rc8 {[%clk 0:01:56]}  Re2 {[%clk 0:01:34]} 36. Rxc6 {[%clk 0:01:56]}  Rxg2 {[%clk 0:01:33]} 37. b5 {[%clk 0:01:56]}  Rb2 {[%clk 0:01:32]} 38. b6 {[%clk 0:01:56]}  h5 {[%clk 0:01:29]} 39. Kc5 {[%clk 0:01:42]}  g4 {[%clk 0:01:24]} 40. fxg4 {[%clk 0:01:39]}  hxg4 {[%clk 0:01:25]} 41. Rd6 {[%clk 0:01:39]}  Kf6 {[%clk 0:01:20]} 42. Rd4 {[%clk 0:01:38]}  g3 {[%clk 0:01:19]} 43. Kc6 {[%clk 0:01:25]}  Kg5 {[%clk 0:01:14]} 44. b7 {[%clk 0:01:22]}  g2 {[%clk 0:01:13]} 45. Rd8 {[%clk 0:01:15]}  Kf4 {[%clk 0:01:12]} 46. Rg8 {[%clk 0:01:14]}  Kf3 {[%clk 0:01:13]} 47. Kc7 {[%clk 0:01:13]}  Kf2 {[%clk 0:01:11]} 48. b8=Q {[%clk 0:01:09]}  Rxb8 {[%clk 0:01:10]} 49. Kxb8 {[%clk 0:01:09]}  g1=Q {[%clk 0:01:10]} 50. Kc7 {[%clk 0:01:07]}  Qxg8 {[%clk 0:01:09]} 0-1


[Site "https://www.chess.com"]

[Event "Titled Tuesday Blitz November 14 Early 2023"]
[White "Pastar, Slaven"]
[Black "VOneChess"]
[WhiteFideId "14402718"]
[WhiteElo "2638"]
[BlackElo "2312"]
[Result "1-0"]
[Round "1"]
[TimeControl "180+1"]
[Date "2023.11.14"]
[WhiteClock "0:00:46"]
[BlackClock "0:00:03"]
[Board "172"]

1. b3 {[%clk 0:03:00]}  Nf6 {[%clk 0:02:58]} 2. Bb2 {[%clk 0:03:01]}  g6 {[%clk 0:02:59]} 3. Nf3 {[%clk 0:03:02]}  Bg7 {[%clk 0:02:59]} 4. e3 {[%clk 0:03:02]}  O-O {[%clk 0:03:00]} 5. c4 {[%clk 0:03:03]}  d5 {[%clk 0:03:01]} 6. cxd5 {[%clk 0:03:03]}  Nxd5 {[%clk 0:03:01]} 7. Bxg7 {[%clk 0:03:03]}  Kxg7 {[%clk 0:03:02]} 8. Be2 {[%clk 0:03:03]}  Nc6 {[%clk 0:03:02]} 9. O-O {[%clk 0:03:04]}  Bg4 {[%clk 0:03:01]} 10. Qc2 {[%clk 0:03:04]}  Qd7 {[%clk 0:03:01]} 11. Qb2+ {[%clk 0:03:05]}  Nf6 {[%clk 0:02:56]} 12. b4 {[%clk 0:03:05]}  a6 {[%clk 0:02:52]} 13. a4 {[%clk 0:03:05]}  b5 {[%clk 0:02:45]} 14. axb5 {[%clk 0:03:03]}  axb5 {[%clk 0:02:46]} 15. Rxa8 {[%clk 0:03:03]}  Rxa8 {[%clk 0:02:47]} 16. Bxb5 {[%clk 0:02:50]}  Bxf3 {[%clk 0:02:46]} 17. gxf3 {[%clk 0:02:51]}  Rb8 {[%clk 0:02:22]} 18. Bxc6 {[%clk 0:02:50]}  Qxc6 {[%clk 0:02:23]} 19. e4 {[%clk 0:02:42]}  Rb5 {[%clk 0:02:23]} 20. Nc3 {[%clk 0:01:58]}  Rg5+ {[%clk 0:01:07]} 21. Kh1 {[%clk 0:01:57]}  e5 {[%clk 0:01:06]} 22. Rg1 {[%clk 0:01:53]}  Rh5 {[%clk 0:01:06]} 23. Rg3 {[%clk 0:01:46]}  Rh4 {[%clk 0:00:54]} 24. Kg2 {[%clk 0:01:33]}  Nh5 {[%clk 0:00:44]} 25. Nd5 {[%clk 0:01:32]}  Qe6 {[%clk 0:00:43]} 26. Nxc7 {[%clk 0:01:18]}  Nf4+ {[%clk 0:00:41]} 27. Kg1 {[%clk 0:01:12]}  Ne2+ {[%clk 0:00:35]} 28. Kg2 {[%clk 0:00:53]}  Nf4+ {[%clk 0:00:05]} 29. Kg1 {[%clk 0:00:52]}  Qd6 {[%clk 0:00:05]} 30. Ne8+ {[%clk 0:00:49]}  Kf8 {[%clk 0:00:02]} 31. Nxd6 {[%clk 0:00:49]}  Ne2+ {[%clk 0:00:02]} 32. Kf1 {[%clk 0:00:45]}  Nxg3+ {[%clk 0:00:03]} 33. hxg3 {[%clk 0:00:44]}  Rh1+ {[%clk 0:00:03]} 34. Kg2 {[%clk 0:00:44]}  Rd1 {[%clk 0:00:03]} 35. Qxe5 {[%clk 0:00:44]}  Kg8 {[%clk 0:00:03]} 36. Qf6 {[%clk 0:00:44]}  Rxd2 {[%clk 0:00:03]} 37. Qxf7+ {[%clk 0:00:45]}  Kh8 {[%clk 0:00:03]} 38. Qf8# {[%clk 0:00:46]} 1-0


[Site "https://www.chess.com"]

[Event "Titled Tuesday Blitz November 14 Early 2023"]
[White "Iunusovnuriddin"]
[Black "Bodnaruk, Anastasia"]
[BlackFideId "4181751"]
[WhiteElo "2310"]
[BlackElo "2633"]
[Result "0-1"]
[Round "1"]
[TimeControl "180+1"]
[Date "2023.11.14"]
[WhiteClock "0:00:05"]
[BlackClock "0:00:21"]
[Board "173"]

1. e4 {[%clk 0:02:56]}  c5 {[%clk 0:02:59]} 2. c3 {[%clk 0:02:50]}  Nf6 {[%clk 0:02:58]} 3. e5 {[%clk 0:02:49]}  Nd5 {[%clk 0:02:58]} 4. d4 {[%clk 0:02:49]}  cxd4 {[%clk 0:02:56]} 5. Qxd4 {[%clk 0:02:50]}  e6 {[%clk 0:02:56]} 6. Nf3 {[%clk 0:02:51]}  Nc6 {[%clk 0:02:56]} 7. Qe4 {[%clk 0:02:51]}  f5 {[%clk 0:02:56]} 8. Qe2 {[%clk 0:02:50]}  b5 {[%clk 0:02:54]} 9. g3 {[%clk 0:02:50]}  Rb8 {[%clk 0:02:50]} 10. Bg2 {[%clk 0:02:47]}  Be7 {[%clk 0:02:45]} 11. O-O {[%clk 0:02:45]}  O-O {[%clk 0:02:45]} 12. Nbd2 {[%clk 0:02:45]}  Qc7 {[%clk 0:02:06]} 13. Nb3 {[%clk 0:02:38]}  a6 {[%clk 0:01:50]} 14. Rd1 {[%clk 0:02:31]}  Bb7 {[%clk 0:01:46]} 15. h4 {[%clk 0:02:29]}  f4 {[%clk 0:01:43]} 16. Rxd5 {[%clk 0:02:28]}  exd5 {[%clk 0:01:43]} 17. Bxf4 {[%clk 0:02:28]}  Rbe8 {[%clk 0:01:24]} 18. Re1 {[%clk 0:02:19]}  Nd8 {[%clk 0:01:08]} 19. e6 {[%clk 0:01:53]}  Qc8 {[%clk 0:01:06]} 20. Bh3 {[%clk 0:01:49]}  Nxe6 {[%clk 0:01:00]} 21. Bxe6+ {[%clk 0:01:45]}  dxe6 {[%clk 0:01:01]} 22. Qxe6+ {[%clk 0:01:45]}  Qxe6 {[%clk 0:01:01]} 23. Rxe6 {[%clk 0:01:45]}  Kh8 {[%clk 0:01:01]} 24. Rb6 {[%clk 0:01:27]}  Bc8 {[%clk 0:01:01]} 25. Nbd4 {[%clk 0:01:16]}  Bf6 {[%clk 0:00:55]} 26. Bd6 {[%clk 0:00:59]}  Rf7 {[%clk 0:00:51]} 27. Nc6 {[%clk 0:00:56]}  h6 {[%clk 0:00:40]} 28. Nfe5 {[%clk 0:00:51]}  Bxe5 {[%clk 0:00:35]} 29. Bxe5 {[%clk 0:00:52]}  Re6 {[%clk 0:00:31]} 30. f4 {[%clk 0:00:29]}  Kh7 {[%clk 0:00:28]} 31. Kf2 {[%clk 0:00:21]}  Bd7 {[%clk 0:00:25]} 32. Nd8 {[%clk 0:00:20]}  Rxf4+ {[%clk 0:00:25]} 33. Bxf4 {[%clk 0:00:19]}  Rxb6 {[%clk 0:00:26]} 34. Ke3 {[%clk 0:00:16]}  Kg8 {[%clk 0:00:25]} 35. Kd4 {[%clk 0:00:15]}  Kf8 {[%clk 0:00:23]} 36. Kxd5 {[%clk 0:00:15]}  Ke7 {[%clk 0:00:24]} 37. Bc7 {[%clk 0:00:14]}  Rf6 {[%clk 0:00:21]} 38. Nb7 {[%clk 0:00:05]}  Bc6+ {[%clk 0:00:21]} 0-1


[Site "https://www.chess.com"]

[Event "Titled Tuesday Blitz November 14 Early 2023"]
[White "Maltsevskaya, Aleksandra"]
[Black "Ardila, Oscar Humberto"]
[WhiteFideId "24174041"]
[BlackFideId "4404742"]
[WhiteElo "2632"]
[BlackElo "2309"]
[Result "1-0"]
[Round "1"]
[TimeControl "180+1"]
[Date "2023.11.14"]
[WhiteClock "0:01:37"]
[BlackClock "0:00:46"]
[Board "174"]

1. Nf3 {[%clk 0:02:59]}  Nf6 {[%clk 0:02:59]} 2. d4 {[%clk 0:02:59]}  g6 {[%clk 0:03:00]} 3. c4 {[%clk 0:02:57]}  Bg7 {[%clk 0:03:00]} 4. Nc3 {[%clk 0:02:52]}  O-O {[%clk 0:03:00]} 5. g3 {[%clk 0:02:52]}  d6 {[%clk 0:03:00]} 6. Bg2 {[%clk 0:02:52]}  Nbd7 {[%clk 0:03:01]} 7. O-O {[%clk 0:02:51]}  c6 {[%clk 0:03:01]} 8. Bg5 {[%clk 0:02:49]}  h6 {[%clk 0:02:58]} 9. Bf4 {[%clk 0:02:48]}  Nh5 {[%clk 0:02:56]} 10. Be3 {[%clk 0:02:46]}  Nhf6 {[%clk 0:02:54]} 11. h3 {[%clk 0:02:44]}  e5 {[%clk 0:02:52]} 12. Qd2 {[%clk 0:02:43]}  Kh7 {[%clk 0:02:52]} 13. dxe5 {[%clk 0:02:42]}  dxe5 {[%clk 0:02:51]} 14. Rfd1 {[%clk 0:02:43]}  Qe7 {[%clk 0:02:46]} 15. Qc2 {[%clk 0:02:37]}  Nc5 {[%clk 0:02:38]} 16. Nh4 {[%clk 0:02:27]}  Be6 {[%clk 0:02:31]} 17. b3 {[%clk 0:02:22]}  Rad8 {[%clk 0:02:29]} 18. Rxd8 {[%clk 0:02:18]}  Rxd8 {[%clk 0:02:29]} 19. Rd1 {[%clk 0:02:18]}  Rxd1+ {[%clk 0:02:06]} 20. Qxd1 {[%clk 0:02:19]}  Nfd7 {[%clk 0:01:50]} 21. b4 {[%clk 0:02:03]}  Na6 {[%clk 0:01:46]} 22. b5 {[%clk 0:02:03]}  Nac5 {[%clk 0:01:27]} 23. bxc6 {[%clk 0:01:54]}  bxc6 {[%clk 0:01:27]} 24. Bxc6 {[%clk 0:01:54]}  Bxc4 {[%clk 0:01:26]} 25. Bd5 {[%clk 0:01:54]}  Nb6 {[%clk 0:01:21]} 26. Bxc4 {[%clk 0:01:48]}  Nxc4 {[%clk 0:01:21]} 27. Bc1 {[%clk 0:01:48]}  e4 {[%clk 0:01:08]} 28. Qd5 {[%clk 0:01:39]}  Qd6 {[%clk 0:00:49]} 29. Qxc4 {[%clk 0:01:38]}  Qd1+ {[%clk 0:00:46]} 30. Nxd1 {[%clk 0:01:37]} 1-0


[Site "https://www.chess.com"]